[Event "10th Cesme Open-A 2024"]
[Site "Cesme"]
[Date "2024.06.27"]
[Round "5"]
[White "Karaoglan, Kivanc"]
[Black "Gholami, Aryan"]
[Result "0-1"]
[ECO "B31"]
[WhiteElo "2274"]
[BlackElo "2481"]
[Annotator "TA"]
[PlyCount "80"]
[EventDate "2024.06.23"]
[EventType "swiss"]
[EventCountry "TUR"]
[SourceTitle "playchess.com"]
[Source "ChessBase"]
[SourceQuality "1"]
[TimeControl "5400+30"]

{[%evp 18,80,32,29,39,16,22,16,10,0,0,0,25,20,32,31,33,35,45,56,52,39,62,24,66,67,54,46,40,21,48,23,21,-27,0,-38,0,-67,-93,-110,-111,-121,0,0,6,0,0,0,0,0,0,-287,-291,-270,-245,-322,-252,-1646,-1680,-5026,-5027,-5744,-5775,-29997,-29998]} 1. e4 {[%emt 0:01:00]} c5 {[%emt 0:01:00]} 2. Nf3 {[%emt 0:00:30]} Nc6 {[%emt 0:00:30]} 3. Bb5 {[%emt 0:00:00]} g6 {[%emt 0:00:30]} 4. Bxc6 {[%emt 0:00:00]} dxc6 {[%emt 0:00:30]} 5. d3 {[%emt 0:00:30]} Bg7 {[%emt 0:01:30]} 6. h3 {[%emt 0:00:30]} Nf6 {[%emt 0:02:30][%cal Bg8f6,Bf6d7,Bd7f8,Bf8e6,Be6f4][%mdl 32]} 7. Nc3 {[%emt 0:00:30]} O-O {[%emt 0:01:30]} 8. O-O {[%emt 0:00:30]} Nd7 {[%emt 0:05:30]} 9. Be3 {[%emt 0:01:30]} e5 {[%emt 0:00:30]} 10. Qd2 {[%emt 0:01:30]} Re8 {[%emt 0:00:30]} 11. Bh6 {[%emt 0:00:30]} Nf8 {[%emt 0:01:30]} 12. Nh2 {[%emt 0:09:30]} Ne6 {[%emt 0:08:30] The position is equal.} 13. Ne2 {[%emt 0:11:30]} Bh8 {[%emt 0:13:30]} 14. Rae1 {[%emt 0:07:30]} Qh4 {[%emt 0:06:30] Strongly threatening ...g5.} 15. Be3 {[%emt 0:08:30]} Qe7 {[%emt 0:10:30]} 16. f4 {[%emt 0:03:30]} exf4 {[%emt 0:01:30]} 17. Nxf4 {[%emt 0:00:30]} Nxf4 {[%emt 0:00:30]} 18. Bxf4 {[%emt 0:04:30]} Be6 {[%emt 0:00:30][%cal Oa7a5]} 19. b3 {[%emt 0:05:30]} a5 {[%emt 0:04:30]} 20. e5 {[%emt 0:02:30]} (20. Bg5 {seems wilder.} Bc3 21. Qxc3 Qxg5 22. Nf3) 20... Qd7 {[%emt 0:02:30]} 21. Bg5 {[%emt 0:03:30]} Bf5 {[%emt 0:03:30]} ({Much weaker is} 21... Qd4+ 22. Rf2 $11) 22. g4 {[%emt 0:07:30]} Be6 {[%emt 0:01:30]} 23. Bf6 {[%emt 0:01:30]} Bg7 {[%emt 0:03:30] Dodges Qh6} 24. Rf4 {[%emt 0:06:30]} a4 {[%emt 0:05:30]} 25. Ref1 {[%emt 0:03:30]} ({Reject} 25. bxa4 c4 26. Bxg7 Kxg7 $15) (25. Qf2 $142) 25... axb3 {[%emt 0:00:30]} 26. axb3 {[%emt 0:00:00]} Ra2 {[%emt 0:01:30]} 27. Qc3 {[%emt 0:01:00]} ({White should try} 27. Bxg7 $1 $11 Kxg7 28. Qc3) 27... Bf8 $15 {[%emt 0:03:42]} 28. Nf3 {[%emt 0:01:16] [#]} b5 $1 {[%emt 0:05:15]} 29. Ng5 {[%emt 0:02:16] [#]} h6 {[%emt 0:04:48]} (29... b4 $1 $17 {[%cal Rb4c3]} 30. Qd2 Bxb3) 30. Nxe6 $11 {[%emt 0:02:58]} Qxe6 {[%emt 0:00:31]} 31. h4 {[%emt 0:02:23][%cal Bh3h4,Bh4h5][%mdl 32]} Rea8 {[%emt 0:03:31]} 32. h5 {[%emt 0:04:43]} g5 {[%emt 0:00:07]} 33. Re4 {[%emt 0:01:40]} R8a7 {[%emt 0:01:26]} 34. Bxg5 $2 {[%emt 0:02:50][%mdl 8192]} hxg5 $19 {[%emt 0:01:37]} 35. Rf6 {[%emt 0:00:05]} Qe7 {[%emt 0:01:17]} 36. Qd2 {[%emt 0:00:26]} Bg7 {[%emt 0:00:45]} 37. Qxg5 {[%emt 0:00:30]} (37. Rxc6 Bxe5 38. Qe2) 37... Rxc2 {[%emt 0:00:00]} 38. Re1 {[%emt 0:03:52] Wards off Ra1} Qd8 {[%emt 0:00:27]} 39. h6 {[%emt 0:02:19]} Qd4+ {[%emt 0:00:10]} 40. Kf1 {[%emt 0:01:00]} Qxd3+ {[%emt 0:00:09] Weighted Error Value: White=0.84/Black=0.10 (very precise) .  Loses game:     	White=1     	---        Mistake:       	White=3     	Black=1      Inaccurate:     	White=4     	Black=3      OK:         	White=5     	Black=14     Best:        	White=1     	Black=1      Strong:       	---       	Black=1} 0-1

[Event "10th Cesme Open-A 2024"]
[Site "Cesme"]
[Date "2024.06.27"]
[Round "5"]
[White "Cilek, Bora"]
[Black "Samani, Yamac"]
[Result "1/2-1/2"]
[ECO "A22"]
[WhiteElo "2242"]
[BlackElo "2360"]
[Annotator "RC"]
[PlyCount "65"]
[EventDate "2024.06.23"]
[EventType "swiss"]
[EventCountry "TUR"]
[SourceTitle "playchess.com"]
[Source "ChessBase"]
[SourceQuality "1"]
[TimeControl "5400+30"]

1. c4 {[%emt 0:10:00]} e5 {[%emt 0:03:00]} 2. g3 {[%emt 0:00:00]} Nf6 {[%emt 0:01:30]} 3. Bg2 {[%emt 0:00:00]} d5 {[%emt 0:00:30]} 4. cxd5 {[%emt 0:00:30]} Nxd5 {[%emt 0:00:30]} 5. Nc3 {[%emt 0:00:00]} Nf6 {[%emt 0:00:30]} 6. Nf3 {[%emt 0:00:00]} Bd6 {[%emt 0:00:30]} 7. O-O {[%emt 0:01:30]} O-O {[%emt 0:01:30]} 8. d4 {[%emt 0:14:30]} Nc6 {[%emt 0:08:30]} 9. d5 {[%emt 0:03:30]} Nb8 {[%emt 0:02:30]} 10. Qc2 {[%emt 0:06:30]} Nbd7 {[%emt 0:02:30]} 11. Nh4 {[%emt 0:05:30]} a6 {[%emt 0:01:30]} 12. a4 {[%emt 0:02:30]} Rb8 {[%emt 0:04:30]} 13. a5 {[%emt 0:01:30]} Re8 {[%emt 0:04:30]} 14. Nf5 {[%emt 0:05:30]} Nc5 {[%emt 0:04:30]} 15. Nxd6 {[%emt 0:07:30]} cxd6 {[%emt 0:00:30]} 16. b4 {[%emt 0:00:30]} Ncd7 {[%emt 0:00:00]} 17. h3 {[%emt 0:04:30]} b5 {[%emt 0:01:00]} 18. e4 {[%emt 0:01:30]} Bb7 {[%emt 0:02:30]} 19. Be3 {[%emt 0:02:30]} Rc8 {[%emt 0:00:30]} 20. Rfc1 {[%emt 0:02:30]} Qe7 {[%emt 0:06:30]} 21. Qb2 {[%emt 0:02:30]} Rc7 {[%emt 0:00:30]} 22. Ne2 {[%emt 0:07:30]} Rec8 {[%emt 0:00:30]} 23. Rxc7 {[%emt 0:00:30]} Rxc7 {[%emt 0:00:30]} 24. Rc1 {[%emt 0:00:00]} Qd8 {[%emt 0:00:30]} 25. Rxc7 {[%emt 0:00:00]} Qxc7 {[%emt 0:00:00]} 26. Qc1 {[%emt 0:04:52]} Qxc1+ {[%emt 0:01:00]} 27. Nxc1 {[%emt 0:00:07]} Kf8 {[%emt 0:00:30]} 28. Nd3 {[%emt 0:00:45]} Ne8 {[%emt 0:00:30]} 29. f4 {[%emt 0:01:57]} f6 {[%emt 0:00:30]} 30. Kf2 {[%emt 0:01:46]} Ke7 {[%emt 0:00:00]} 31. h4 {[%emt 0:00:29]} g6 {[%emt 0:09:00]} 32. fxe5 {[%emt 0:06:18]} fxe5 {[%emt 0:12:30]} 33. Bg5+ {[%emt 0:07:48]} 1/2-1/2

[Event "10th Cesme Open-A 2024"]
[Site "Cesme"]
[Date "2024.06.27"]
[Round "5"]
[White "Bolat, Inayat"]
[Black "Schekachikhin, Maksim"]
[Result "0-1"]
[ECO "C47"]
[WhiteElo "2232"]
[BlackElo "2343"]
[Annotator "RC"]
[PlyCount "66"]
[EventDate "2024.06.23"]
[EventType "swiss"]
[EventCountry "TUR"]
[SourceTitle "playchess.com"]
[Source "ChessBase"]
[SourceQuality "1"]
[TimeControl "5400+30"]

1. e4 {[%emt 0:01:00]} e5 {[%emt 0:01:00]} 2. Nf3 {[%emt 0:00:00]} Nc6 {[%emt 0:00:30]} 3. Nc3 {[%emt 0:03:00]} Nf6 {[%emt 0:00:30]} 4. Be2 {[%emt 0:04:30]} d5 {[%emt 0:06:30]} 5. exd5 {[%emt 0:00:30]} Nxd5 {[%emt 0:00:30]} 6. O-O {[%emt 0:00:00]} Nxc3 {[%emt 0:01:30]} 7. bxc3 {[%emt 0:00:00]} Bd6 {[%emt 0:00:30]} 8. d4 {[%emt 0:00:30]} O-O {[%emt 0:00:30]} 9. Rb1 h6 {[%emt 0:04:30]} 10. Re1 {[%emt 0:10:00]} Qf6 {[%emt 0:04:30]} 11. h3 {[%emt 0:04:30]} Rd8 {[%emt 0:09:30]} 12. Bb5 {[%emt 0:05:30]} Bf5 {[%emt 0:05:30]} 13. Bxc6 {[%emt 0:04:30]} bxc6 {[%emt 0:04:30]} 14. Qe2 {[%emt 0:01:30]} exd4 {[%emt 0:02:30]} 15. cxd4 {[%emt 0:00:30]} Be6 {[%emt 0:11:30]} 16. a4 {[%emt 0:19:30]} Re8 {[%emt 0:04:30]} 17. Be3 {[%emt 0:09:30]} Qg6 {[%emt 0:04:30]} 18. Kh1 {[%emt 0:08:30]} Bd5 {[%emt 0:05:30]} 19. c4 {[%emt 0:01:30]} Be4 {[%emt 0:00:30]} 20. Rb3 {[%emt 0:01:30]} Bxf3 {[%emt 0:04:30]} 21. Qxf3 {[%emt 0:00:30]} Qc2 {[%emt 0:00:30]} 22. Rbb1 {[%emt 0:09:09]} Qxc4 {[%emt 0:00:30]} 23. Rec1 {[%emt 0:03:08]} Qxa4 {[%emt 0:01:30]} 24. Rxc6 {[%emt 0:00:15]} a5 {[%emt 0:04:30]} 25. Rbc1 {[%emt 0:01:49]} Rab8 {[%emt 0:03:12]} 26. g4 {[%emt 0:04:08]} Qb5 {[%emt 0:01:36]} 27. Rg1 {[%emt 0:01:15]} Qd3 {[%emt 0:01:15]} 28. Rcc1 {[%emt 0:01:48]} Rb2 {[%emt 0:01:40]} 29. Rgd1 {[%emt 0:02:25]} Qb3 {[%emt 0:01:46]} 30. h4 {[%emt 0:01:56]} Rxf2 {[%emt 0:02:53]} 31. Qxf2 {[%emt 0:00:30]} Rxe3 {[%emt 0:00:00]} 32. d5 {[%emt 0:02:19]} Rh3+ {[%emt 0:00:13]} 33. Kg1 {[%emt 0:00:00]} Bc5 {[%emt 0:00:18]} 0-1

[Event "10th Cesme Open-A 2024"]
[Site "Cesme"]
[Date "2024.06.27"]
[Round "5"]
[White "Ozdemir, Serhan Berat"]
[Black "Uysal, Ugur"]
[Result "1/2-1/2"]
[ECO "B43"]
[WhiteElo "2225"]
[BlackElo "2058"]
[Annotator "RC"]
[PlyCount "170"]
[EventDate "2024.06.23"]
[EventType "swiss"]
[EventCountry "TUR"]
[SourceTitle "playchess.com"]
[Source "ChessBase"]
[SourceQuality "1"]
[TimeControl "5400+30"]

1. e4 c5 2. Nf3 e6 3. d4 cxd4 4. Nxd4 a6 5. Nc3 Qc7 6. Be3 Nf6 7. a3 b6 8. g4 h5 9. gxh5 Rxh5 10. Nb3 Bb7 11. Qd4 Bc5 12. Nxc5 bxc5 13. Qc4 Nc6 14. O-O-O Na5 15. Qe2 Rxh2 16. Rxh2 Qxh2 17. Bxc5 Rc8 18. Qe3 Qh6 19. Qxh6 gxh6 20. b4 Nxe4 21. Nxe4 Bxe4 22. Bxa6 Ra8 23. Bb5 Nc6 24. Rg1 Ne7 25. Kb2 Ng6 26. Be2 Kd8 27. Bd6 Kc8 28. f3 Bf5 29. Rh1 Kb7 30. Rxh6 Kc6 31. Bg3 Ne7 32. b5+ Kb7 33. Bd6 Nc8 34. Bb4 d5 35. Rf6 Bg6 36. Bd3 Bxd3 37. cxd3 Kb6 38. Rxf7 Kxb5 39. Rf6 Ra6 40. Kb3 Na7 41. Rf7 Nc6 42. Bc3 Kc5 43. Rf4 e5 44. Rf7 Nd4+ 45. Kb2 Nb5 46. Bb4+ Kd4 47. Rd7 Ra7 48. Rd8 Rb7 49. Kc2 Ra7 50. Kb3 Rb7 51. Kc2 Ra7 52. Kb2 Rf7 53. a4 Na7 54. Bc3+ Kxd3 55. Rxd5+ Kc4 56. Rxe5 Rxf3 57. Re4+ Kd5 58. Rh4 Nc6 59. Kb3 Na5+ 60. Kc2 Nc6 61. Kb2 Kc5 62. Rh6 Rg3 63. Rh7 Kc4 64. Rc7 Rg2+ 65. Ka3 Rg6 66. Bb2 Rg3+ 67. Ka2 Rg6 68. Ba3 Rg2+ 69. Kb1 Kb3 70. Rxc6 Kxa3 71. a5 Rg5 72. a6 Ra5 73. Rb6 Ra4 74. Kc2 Rc4+ 75. Kd3 Rc8 76. a7 Ra8 77. Rb1 Ka4 78. Kc4 Ka5 79. Kc5 Ka6 80. Kc6 Rc8+ 81. Kd7 Rh8 82. Kc7 Rh7+ 83. Kb8 Rh8+ 84. Kc7 Rh7+ 85. Kc6 Rh6+ 1/2-1/2

[Event "10th Cesme Open-A 2024"]
[Site "Cesme"]
[Date "2024.06.27"]
[Round "5"]
[White "Ozen, Metehan"]
[Black "Nazarian, Arash"]
[Result "1/2-1/2"]
[ECO "C02"]
[WhiteElo "2160"]
[BlackElo "2007"]
[Annotator "RC"]
[PlyCount "82"]
[EventDate "2024.06.23"]
[EventType "swiss"]
[EventCountry "TUR"]
[SourceTitle "playchess.com"]
[Source "ChessBase"]
[SourceQuality "1"]
[TimeControl "5400+30"]

1. e4 {[%emt 0:05:00]} e6 {[%emt 0:01:00]} 2. d4 {[%emt 0:00:30]} d5 {[%emt 0:00:30]} 3. e5 {[%emt 0:00:30]} c5 {[%emt 0:00:30]} 4. c3 {[%emt 0:00:00]} Nc6 {[%emt 0:00:00]} 5. Nf3 {[%emt 0:00:00]} Qb6 {[%emt 0:00:00]} 6. a3 {[%emt 0:01:30]} Nh6 {[%emt 0:00:30]} 7. b4 {[%emt 0:01:30]} cxd4 {[%emt 0:00:30]} 8. cxd4 {[%emt 0:00:30]} Nf5 {[%emt 0:00:00]} 9. Bb2 {[%emt 0:00:30]} Bd7 {[%emt 0:02:00]} 10. g4 {[%emt 0:04:30]} Nfe7 {[%emt 0:00:30]} 11. Nc3 {[%emt 0:03:30]} Ng6 {[%emt 0:02:30]} 12. Na4 {[%emt 0:04:30]} Qd8 {[%emt 0:02:30]} 13. Rc1 {[%emt 0:09:30]} a6 {[%emt 0:05:30]} 14. Nc5 {[%emt 0:02:30]} Bxc5 {[%emt 0:00:30]} 15. Rxc5 {[%emt 0:00:30]} O-O {[%emt 0:07:30]} 16. h4 {[%emt 0:11:30]} f6 {[%emt 0:07:30]} 17. h5 {[%emt 0:03:30]} Nf4 {[%emt 0:02:30]} 18. h6 {[%emt 0:01:30]} g5 {[%emt 0:07:30]} 19. Qd2 {[%emt 0:01:30]} Be8 {[%emt 0:04:30]} 20. Bd3 {[%emt 0:03:30]} fxe5 {[%emt 0:04:30]} 21. Nxe5 {[%emt 0:00:30]} Nxe5 {[%emt 0:00:30]} 22. dxe5 {[%emt 0:00:00]} Nxd3+ {[%emt 0:01:30]} 23. Qxd3 {[%emt 0:00:00]} Bg6 {[%emt 0:00:30]} 24. Qc3 {[%emt 0:04:30]} Rf4 {[%emt 0:08:30]} 25. f3 {[%emt 0:04:30]} Qf8 {[%emt 0:10:30]} 26. Rh3 {[%emt 0:01:30]} d4 {[%emt 0:02:30]} 27. Qb3 {[%emt 0:03:30]} Qe7 {[%emt 0:01:30]} 28. Bc1 {[%emt 0:02:30]} Rf7 {[%emt 0:00:30]} 29. Qc4 {[%emt 0:02:30]} d3 {[%emt 0:01:30]} 30. Bd2 {[%emt 0:01:30]} Raf8 {[%emt 0:05:30]} 31. Qc1 {[%emt 0:03:30]} b6 {[%emt 0:04:56]} 32. Rc6 {[%emt 0:03:30]} Qd7 {[%emt 0:06:16]} 33. Qc4 {[%emt 0:02:51]} b5 {[%emt 0:01:09]} 34. Qc5 {[%emt 0:01:11]} Be4 {[%emt 0:01:20]} 35. Rd6 {[%emt 0:00:35]} Qb7 {[%emt 0:01:07]} 36. Qe3 {[%emt 0:01:12]} Bxf3 {[%emt 0:01:54]} 37. Qxg5+ {[%emt 0:01:37]} Kh8 {[%emt 0:00:00]} 38. Rd8 {[%emt 0:00:47]} Bg2 {[%emt 0:00:43]} 39. Rxf8+ {[%emt 0:04:15]} Rxf8 {[%emt 0:00:00]} 40. Qg7+ {[%emt 0:01:15]} Qxg7 {[%emt 0:00:30]} 41. hxg7+ {[%emt 0:00:02]} Kxg7 {[%emt 0:00:00]} 1/2-1/2

[Event "10th Cesme Open-A 2024"]
[Site "Cesme"]
[Date "2024.06.27"]
[Round "5"]
[White "Maruflu, Enes Yusuf"]
[Black "Demirbas, Emre"]
[Result "1/2-1/2"]
[ECO "B45"]
[WhiteElo "2141"]
[BlackElo "2012"]
[Annotator "RC"]
[PlyCount "61"]
[EventDate "2024.06.23"]
[EventType "swiss"]
[EventCountry "TUR"]
[SourceTitle "playchess.com"]
[Source "ChessBase"]
[SourceQuality "1"]
[TimeControl "5400+30"]

1. e4 {[%emt 0:01:00]} c5 {[%emt 0:03:00]} 2. Nf3 {[%emt 0:00:30]} e6 {[%emt 0:00:30]} 3. d4 {[%emt 0:00:30]} cxd4 {[%emt 0:00:00]} 4. Nxd4 {[%emt 0:00:30]} Nf6 {[%emt 0:00:00]} 5. Nc3 {[%emt 0:00:30]} Nc6 {[%emt 0:00:30]} 6. Nxc6 {[%emt 0:00:00]} bxc6 {[%emt 0:00:00]} 7. e5 {[%emt 0:00:00]} Nd5 {[%emt 0:00:00]} 8. Ne4 {[%emt 0:00:00]} Bb7 {[%emt 0:00:00]} 9. Be2 {[%emt 0:00:00]} c5 {[%emt 0:00:00]} 10. O-O {[%emt 0:00:00]} Qc7 {[%emt 0:00:30]} 11. Nd6+ {[%emt 0:01:00]} Bxd6 {[%emt 0:00:30]} 12. exd6 {[%emt 0:00:30]} Qc6 {[%emt 0:00:00]} 13. f3 {[%emt 0:00:30]} c4 {[%emt 0:00:00]} 14. Qd4 {[%emt 0:00:30]} O-O {[%emt 0:00:00]} 15. Bxc4 {[%emt 0:06:30]} Rfc8 {[%emt 0:00:00]} 16. b3 {[%emt 0:20:30]} Qxd6 {[%emt 0:02:30]} 17. Rd1 {[%emt 0:05:30]} Qb6 {[%emt 0:06:30]} 18. Qxb6 {[%emt 0:00:00]} axb6 {[%emt 0:04:30]} 19. a4 {[%emt 0:01:00]} Nb4 {[%emt 0:14:30]} 20. Rxd7 {[%emt 0:02:30]} Nxc2 {[%emt 0:02:30]} 21. Rb1 {[%emt 0:02:30]} Bc6 {[%emt 0:11:30]} 22. Rd2 {[%emt 0:20:30]} Ne3 {[%emt 0:02:30]} 23. Bd3 {[%emt 0:05:30]} Nd5 {[%emt 0:03:30]} 24. Bb2 {[%emt 0:02:30]} Rd8 {[%emt 0:01:30]} 25. Rbd1 {[%emt 0:04:30]} Rdb8 {[%emt 0:04:30]} 26. Rc1 {[%emt 0:03:30]} Nb4 {[%emt 0:04:30]} 27. Bb1 {[%emt 0:03:30]} Bd5 {[%emt 0:02:30]} 28. Ba3 {[%emt 0:01:28]} Rc8 {[%emt 0:00:30]} 29. Rxc8+ {[%emt 0:01:48]} Rxc8 {[%emt 0:00:00]} 30. Be4 {[%emt 0:01:07]} f5 {[%emt 0:03:00]} 31. Bxb4 {[%emt 0:07:00]} 1/2-1/2

[Event "10th Cesme Open-A 2024"]
[Site "Cesme"]
[Date "2024.06.27"]
[Round "5"]
[White "Kavri, Yusuf Eren"]
[Black "Ceyhan, Mert"]
[Result "1-0"]
[ECO "D50"]
[WhiteElo "2059"]
[BlackElo "2018"]
[Annotator "RC"]
[PlyCount "155"]
[EventDate "2024.06.23"]
[EventType "swiss"]
[EventCountry "TUR"]
[SourceTitle "playchess.com"]
[Source "ChessBase"]
[SourceQuality "1"]
[TimeControl "5400+30"]

1. d4 {[%emt 0:01:00]} d5 {[%emt 0:09:00]} 2. c4 {[%emt 0:00:00]} e6 {[%emt 0:01:30]} 3. Nc3 {[%emt 0:00:00]} Nf6 {[%emt 0:00:30]} 4. Bg5 {[%emt 0:00:30]} dxc4 {[%emt 0:00:00]} 5. e3 {[%emt 0:02:30]} c5 {[%emt 0:02:00]} 6. Bxc4 {[%emt 0:00:30]} a6 {[%emt 0:04:30]} 7. a4 {[%emt 0:01:30]} cxd4 {[%emt 0:00:00]} 8. exd4 {[%emt 0:00:30]} Be7 {[%emt 0:00:00]} 9. Nf3 {[%emt 0:00:30]} O-O {[%emt 0:00:00]} 10. Qe2 {[%emt 0:04:30]} Nc6 {[%emt 0:03:00]} 11. Rd1 {[%emt 0:00:30]} Nd5 {[%emt 0:04:30]} 12. Bxe7 {[%emt 0:20:30]} Ncxe7 {[%emt 0:00:30]} 13. O-O {[%emt 0:01:30]} b6 {[%emt 0:01:30]} 14. Ne5 {[%emt 0:03:30]} Bb7 {[%emt 0:01:30]} 15. Ne4 {[%emt 0:11:30]} Nf5 {[%emt 0:03:30]} 16. g3 {[%emt 0:08:30]} Qe8 {[%emt 0:11:30]} 17. a5 {[%emt 0:10:30]} f6 {[%emt 0:00:30]} 18. Nf3 {[%emt 0:00:30]} Qg6 {[%emt 0:03:30]} 19. Bxd5 {[%emt 0:03:30]} Bxd5 {[%emt 0:00:30]} 20. Nc3 {[%emt 0:02:30]} Bb3 {[%emt 0:02:30]} 21. Rc1 {[%emt 0:03:30]} b5 {[%emt 0:00:30]} 22. Nd2 {[%emt 0:03:30]} Nxd4 {[%emt 0:03:30]} 23. Qe3 {[%emt 0:00:00]} Nc2 {[%emt 0:07:30]} 24. Qe2 {[%emt 0:05:31]} Nd4 {[%emt 0:02:30]} 25. Qe3 {[%emt 0:00:03]} Rfd8 {[%emt 0:06:30]} 26. Nxb5 {[%emt 0:01:40]} axb5 {[%emt 0:03:30]} 27. Nxb3 {[%emt 0:00:00]} Nxb3 {[%emt 0:01:30]} 28. Qxb3 {[%emt 0:00:07]} Qf5 {[%emt 0:00:30]} 29. Rfe1 {[%emt 0:00:30]} Qd5 {[%emt 0:00:30]} 30. Qxd5 {[%emt 0:00:30]} Rxd5 {[%emt 0:00:30]} 31. Rxe6 {[%emt 0:02:46]} Kf7 {[%emt 0:00:30]} 32. Rb6 {[%emt 0:01:12]} Rxa5 {[%emt 0:00:30]} 33. Rc7+ {[%emt 0:00:00]} Kg6 {[%emt 0:00:30]} 34. Rbb7 {[%emt 0:01:38]} Rd2 {[%emt 0:01:30]} 35. Rxg7+ {[%emt 0:00:30]} Kf5 {[%emt 0:00:00]} 36. Rxh7 {[%emt 0:04:06]} Rxb2 {[%emt 0:00:00]} 37. Rh4 {[%emt 0:00:11]} Kg5 {[%emt 0:04:30]} 38. Rf4 {[%emt 0:01:01]} Ra6 {[%emt 0:00:30]} 39. Rb8 {[%emt 0:01:32]} Kg6 {[%emt 0:01:30]} 40. h4 {[%emt 0:00:10]} Re6 {[%emt 0:00:30]} 41. Kg2 {[%emt 0:02:49]} Kg7 {[%emt 0:00:00]} 42. Rg4+ {[%emt 0:01:05]} Kh7 {[%emt 0:01:00]} 43. Rb7+ {[%emt 0:00:30]} Kh6 {[%emt 0:00:30]} 44. Rf4 {[%emt 0:01:01]} Kg6 {[%emt 0:00:30]} 45. Kh3 {[%emt 0:00:15]} f5 {[%emt 0:00:30]} 46. Rb8 {[%emt 0:00:25]} Rf6 {[%emt 0:01:30]} 47. Kg2 {[%emt 0:00:14]} Rb1 {[%emt 0:00:30]} 48. Rf3 {[%emt 0:03:24]} Rb2 {[%emt 0:00:30]} 49. Rd3 {[%emt 0:00:23]} f4 {[%emt 0:01:30]} 50. g4 {[%emt 0:00:11]} Rb1 {[%emt 0:00:30]} 51. Rg8+ {[%emt 0:00:33]} Kf7 {[%emt 0:00:30]} 52. Rb8 {[%emt 0:00:45]} Kg6 {[%emt 0:00:30]} 53. Rf3 {[%emt 0:01:36]} b4 {[%emt 0:00:30]} 54. h5+ {[%emt 0:00:06]} Kg7 {[%emt 0:01:49]} 55. Rb5 {[%emt 0:00:06]} Rf7 {[%emt 0:00:53]} 56. Rb6 {[%emt 0:00:40]} Kh7 {[%emt 0:01:50]} 57. h6 {[%emt 0:01:21]} b3 {[%emt 0:00:27]} 58. Rbxb3 {[%emt 0:00:34]} Rxb3 {[%emt 0:00:31]} 59. Rxb3 {[%emt 0:00:30]} Kxh6 {[%emt 0:00:30]} 60. Kf3 {[%emt 0:00:00]} Kg5 {[%emt 0:00:00]} 61. Rb5+ {[%emt 0:00:11]} Kg6 {[%emt 0:00:00]} 62. Ke4 {[%emt 0:01:04]} f3 {[%emt 0:02:10]} 63. Rf5 {[%emt 0:00:23]} Ra7 {[%emt 0:00:56]} 64. Kxf3 {[%emt 0:00:30]} Ra4 {[%emt 0:00:30]} 65. Kg3 {[%emt 0:00:00]} Ra3+ {[%emt 0:00:00]} 66. f3 {[%emt 0:00:00]} Ra1 {[%emt 0:00:00]} 67. Rb5 {[%emt 0:00:15]} Ra2 {[%emt 0:00:27]} 68. Rb6+ {[%emt 0:00:30]} Kg7 {[%emt 0:00:30]} 69. g5 {[%emt 0:00:30]} Ra4 {[%emt 0:00:30]} 70. f4 {[%emt 0:00:00]} Ra1 {[%emt 0:00:00]} 71. Kg4 {[%emt 0:00:00]} Ra2 {[%emt 0:00:00]} 72. Rb7+ {[%emt 0:00:00]} Kg8 {[%emt 0:00:00]} 73. f5 {[%emt 0:00:00]} Ra5 {[%emt 0:00:00]} 74. f6 {[%emt 0:00:00]} Ra8 {[%emt 0:00:00]} 75. Kh5 {[%emt 0:00:15]} Rf8 {[%emt 0:00:00]} 76. Kg6 {[%emt 0:00:00]} Ra8 {[%emt 0:00:00]} 77. Rg7+ {[%emt 0:00:00]} Kh8 {[%emt 0:00:00]} 78. Rh7+ {[%emt 0:00:00]} 1-0